fUST/lending_fUST_20241027
["ID","MTS","AMOUNT","RATE_DAILY","PERIOD"]
[340892852,1730032240360,-292.412382,0.00027397,7]
[340892853,1730032240369,-151.0,0.00027397,7]
[340892854,1730032240379,-1083.27,0.00027397,30]
[340892855,1730032240389,-197.259256,0.00027397,7]
[340892856,1730032240399,-292.412382,0.00027397,7]
[340892857,1730032240408,-500.0,0.00027397,30]
[340892858,1730032240418,-292.412382,0.00027397,7]
[340892859,1730032240428,-292.412382,0.00027397,7]
[340892860,1730032240437,-292.412382,0.00027397,7]
[340892861,1730032240447,-95.66481279,0.00027397,7]
[340892864,1730032243179,-500.0,0.00027373,2]
[340892865,1730032243189,-196.74756921,0.00027397,7]
[340892866,1730032243400,-292.412382,0.00027397,7]
[340892867,1730032243411,-292.412382,0.00027397,7]
[340892868,1730032243421,-292.412382,0.00027397,7]
[340892869,1730032243431,-530.15,0.00027397,30]
[340892870,1730032243445,-292.412382,0.00027397,7]
[340892871,1730032243455,-292.412382,0.00027397,7]
[340892872,1730032243465,-292.412382,0.00027397,7]
[340892873,1730032243475,-292.412382,0.00027397,7]
[340892874,1730032243484,-292.412382,0.00027397,7]
[340892875,1730032243494,-292.412382,0.00027397,7]
[340892876,1730032243504,-292.41237794,0.00027397,7]
[340892877,1730032243513,-1315.09,0.00027397,30]
[340892878,1730032243523,-500.0,0.00027397,30]
[340892879,1730032243532,-575.35,0.00027397,30]
[340892880,1730032243542,-500.0,0.00027397,30]
[340892881,1730032243551,-500.0,0.00027397,30]
[340892882,1730032243561,-500.0,0.00027397,30]
[340892883,1730032243571,-500.0,0.00027397,30]
[340892884,1730032243580,-500.0,0.00027397,30]
[340892885,1730032243590,-228.253804,0.00027397,7]
[340892886,1730032243600,-228.253804,0.00027397,7]
[340892887,1730032243612,-228.253804,0.00027397,7]
[340892888,1730032243621,-228.253804,0.00027397,7]
[340892889,1730032243631,-500.0,0.00027397,30]
[340892890,1730032243641,-228.253804,0.00027397,7]
[340892891,1730032243651,-228.253804,0.00027397,7]
[340892892,1730032243661,-228.253804,0.00027397,7]
[340892893,1730032243671,-10.24944777,0.00027397,30]
[340892894,1730032243684,-1258.61090236,0.00027397,30]
[340892895,1730032243696,-1340.77264171,0.00027397,30]
[340893056,1730033438546,-228.3497589,0.00026176,2]
[340893057,1730033438556,-163.250932,0.00026372,2]
[340893059,1730033438568,-163.250932,0.0002683,2]
[340893061,1730033438577,-64.84732588,0.00026986,2]
[340893062,1730033438588,-88.15267412,0.00026986,2]
[340893063,1730033438597,-1000.0,0.00027287,2]
[340893064,1730033438607,-1457.84732588,0.00027287,2]
[340893065,1730033438625,-2602.72394433,0.00027287,2]
[340893066,1730033438635,-163.250932,0.00027289,2]
[340893068,1730033438643,-300.0,0.00027371,2]
[340893069,1730033438657,-300.0,0.00027371,2]
[340893070,1730033438667,-500.0,0.00027373,2]
[340893071,1730033438678,-500.0,0.00027373,2]
[340893072,1730033438690,-500.0,0.00027373,2]
[340893073,1730033438700,-500.0,0.00027373,2]
[340893074,1730033438710,-500.0,0.00027373,2]
[340893075,1730033438720,-7803.00154101,0.00027377,4]
[340893153,1730033446384,-419.52770081,0.00027377,4]
[340893193,1730033772648,5266.614,0.0003604,30]
[340893271,1730034632572,-677.8,0.00025977,2]
[340893273,1730034632583,-1139.7706436,0.00026032,2]
[340893275,1730034632594,-163.250938,0.00026233,2]
[340893277,1730034632604,-3552.99986146,0.00027287,2]
[340893278,1730034632614,-300.0,0.00027371,2]
[340893280,1730034632625,-300.0,0.00027371,2]
[340893282,1730034632635,-500.0,0.00027373,2]
[340893284,1730034632646,-180.17855694,0.00027373,2]
[340893365,1730034638679,-319.82144306,0.00027373,2]
[340893367,1730034638688,-500.0,0.00027373,2]
[340893369,1730034638698,-500.0,0.00027373,2]
[340893372,1730034638710,-500.0,0.00027373,2]
[340893374,1730034638720,-1757.83302733,0.00027377,4]
[340893393,1730034638899,-12087.01983557,0.00027377,4]
[340893394,1730034638909,-150.05,0.00027377,4]
[340893395,1730034638919,-560.2,0.00027377,3]
[340893396,1730034638929,-218.3452616,0.00027387,2]
[340893398,1730034638938,-1138.38490283,0.00027387,4]
[340893526,1730034646610,-1328.68,0.00027387,4]
[340893662,1730035724473,222.27380991,0.0002,7]
[340893738,1730035832725,-300.8955,0.00027256,2]
[340893740,1730035832786,-2807.97937876,0.00027256,2]
[340893742,1730035832796,-706.47124908,0.00027273,2]
[340893743,1730035832805,-300.0,0.00027299,2]
[340893745,1730035832815,-300.0,0.00027299,2]
[340893748,1730035832824,-8173.25,0.000273,5]
[340893750,1730035832834,-208.79067041,0.00027356,2]
[340893751,1730035832843,-14737.50870175,0.00027357,4]
[340893754,1730035832854,-19579.21147975,0.00027357,4]
[340893756,1730035832863,-15992.6436025,0.00027357,4]
[340893758,1730035832874,-269.44234999,0.00027366,2]
[340893760,1730035832885,-500.0,0.00027366,2]
[340893762,1730035832895,-500.0,0.00027366,2]
[340893764,1730035832905,-203.80012,0.00027366,2]
[340893766,1730035832914,-45755.6269087,0.00027367,4]
[340893768,1730035832924,-21323.5248034,0.00027367,4]
[340893770,1730035832934,-501.42746417,0.00027373,2]
[340893772,1730035832944,-500.0,0.00027373,2]
[340893774,1730035832954,-500.0,0.00027373,2]
[340893776,1730035832965,-495.8996441,0.00027373,2]
[340893777,1730035832974,-500.0,0.00027373,2]
[340893778,1730035832984,-500.0,0.00027373,2]
[340893779,1730035832994,-500.0,0.00027373,2]
[340893780,1730035833003,-500.0,0.00027373,2]
[340893781,1730035833013,-500.0,0.00027373,2]
[340893782,1730035833022,-159.954,0.00027376,16]
[340893783,1730035833032,-151.0,0.00027377,7]
[340893784,1730035833042,-151.0,0.00027377,7]
[340893785,1730035833052,-264.838393,0.00027377,7]
[340893786,1730035833061,-264.838393,0.00027377,7]
[340893787,1730035833071,-151.0,0.00027377,7]
[340893788,1730035833081,-151.0,0.00027377,7]
[340893789,1730035833091,-523.610075,0.00027377,7]
[340893790,1730035833101,-523.610075,0.00027377,7]
[340893791,1730035833110,-151.0,0.00027377,7]
[340893792,1730035833120,-260.720324,0.00027377,7]
[340893793,1730035833130,-403.134543,0.00027377,7]
[340893794,1730035833141,-403.134543,0.00027377,7]
[340893795,1730035833150,-214.567508,0.00027377,7]
[340893796,1730035833161,-199.106635,0.00027377,7]
[340893797,1730035833171,-214.567508,0.00027377,7]
[340893798,1730035833180,-151.0,0.00027377,7]
[340893799,1730035833192,-199.106635,0.00027377,7]
[340893800,1730035833202,-151.0,0.00027377,7]
[340893801,1730035833212,-151.0,0.00027377,7]
[340893802,1730035833222,-240.420742,0.00027377,7]
[340893803,1730035833232,-240.420742,0.00027377,7]
[340893804,1730035833241,-151.0,0.00027377,7]
[340893805,1730035833251,-151.0,0.00027377,7]
[340893806,1730035833261,-151.0,0.00027377,7]
[340893807,1730035833271,-454.467813,0.00027377,7]
[340893808,1730035833280,-454.467813,0.00027377,7]
[340893809,1730035833290,-151.0,0.00027377,7]
[340893810,1730035833300,-11438.9067272,0.00027377,4]
[340893811,1730035833309,-5330.88120084,0.00027377,4]
[340893812,1730035833318,-539.49166024,0.00027386,2]
[340893813,1730035833328,-3159.14349858,0.00027387,4]
[340893822,1730035838995,-636.45574793,0.00027387,4]
[340893823,1730035839035,-82806.80623962,0.00027387,4]
[340893824,1730035839048,-876.93337171,0.00027387,4]
[340893834,1730035840927,-26909.72841416,0.00027387,4]
[340893835,1730035840937,-53308.8120084,0.00027387,4]
[340893836,1730035840948,-151.0,0.00027387,7]
[340893837,1730035840959,-151.0,0.00027387,7]
[340893838,1730035840970,-151.0,0.00027387,7]
[340893839,1730035840980,-151.0,0.00027387,7]
[340893840,1730035840989,-219.176384,0.00027387,7]
[340893841,1730035840999,-151.0,0.00027387,7]
[340893842,1730035841008,-151.0,0.00027387,7]
[340893843,1730035841018,-151.0,0.00027387,7]
[340893844,1730035841032,-151.0,0.00027387,7]
[340893845,1730035841042,-151.0,0.00027387,7]
[340893846,1730035841052,-264.838393,0.00027387,7]
[340893848,1730035841062,-264.838393,0.00027387,7]
[340893849,1730035841072,-151.0,0.00027387,7]
[340893850,1730035841083,-151.0,0.00027387,7]
[340893852,1730035841094,-523.610075,0.00027387,7]
[340893854,1730035841105,-523.610075,0.00027387,7]
[340893855,1730035841115,-151.0,0.00027387,7]
[340893856,1730035841126,-403.134543,0.00027387,7]
[340893857,1730035841137,-403.134543,0.00027387,7]
[340893858,1730035841148,-214.567508,0.00027387,7]
[340893859,1730035841158,-199.106635,0.00027387,7]
[340893860,1730035841170,-214.567508,0.00027387,7]
[340893861,1730035841180,-289.972794,0.00027387,7]
[340893862,1730035841427,-199.106635,0.00027387,7]
[340893863,1730035841438,-151.0,0.00027387,7]
[340893864,1730035841452,-151.0,0.00027387,7]
[340893865,1730035841462,-240.420742,0.00027387,7]
[340893866,1730035841471,-240.420742,0.00027387,7]
[340893867,1730035841481,-151.0,0.00027387,7]
[340893868,1730035841490,-151.0,0.00027387,7]
[340893869,1730035841500,-151.0,0.00027387,7]
[340893870,1730035841510,-454.467813,0.00027387,7]
[340893871,1730035841519,-454.467813,0.00027387,7]
[340893872,1730035841530,-151.0,0.00027387,7]
[340893873,1730035841539,-151.0,0.00027387,7]
[340893874,1730035841549,-151.0,0.00027387,7]
[340893875,1730035841560,-151.0,0.00027387,7]
[340893876,1730035841575,-151.0,0.00027387,7]
[340893877,1730035841585,-151.0,0.00027387,7]
[340893878,1730035841595,-151.0,0.00027387,7]
[340893879,1730035841607,-151.0,0.00027387,7]
[340893880,1730035841618,-151.0,0.00027387,7]
[340893881,1730035841628,-151.0,0.00027387,7]
[340893882,1730035841639,-151.0,0.00027387,7]
[340893883,1730035841652,-154.162139,0.00027387,7]
[340893884,1730035841661,-151.0,0.00027387,7]
[340893885,1730035841671,-151.0,0.00027387,7]
[340893886,1730035841680,-528.0,0.00027392,2]
[340893887,1730035841691,-1150.0,0.00027392,2]
[340893888,1730035841701,-2396.0,0.00027392,2]
[340893889,1730035841713,-1667.1990656,0.00027396,2]
[340893890,1730035841723,-150.76445328,0.00027397,30]
[340893891,1730035841732,-500.0,0.00027397,30]
[340893892,1730035841741,-389.1628194,0.00027397,30]
[340893893,1730035841754,-309.19728738,0.00027397,30]
[340893894,1730035841763,-500.0,0.00027397,30]
[340893895,1730035841775,-500.0,0.00027397,30]
[340893896,1730035841784,-500.0,0.00027397,30]
[340893897,1730035841794,-500.0,0.00027397,30]
[340893898,1730035841804,-500.0,0.00027397,30]
[340893899,1730035841813,-558.38,0.00027397,30]
[340893900,1730035841823,-1035.71,0.00027397,30]
[340893901,1730035841835,-500.0,0.00027397,30]
[340893902,1730035841846,-1618.08,0.00027397,30]
[340893903,1730035841857,-500.0,0.00027397,30]
[340893904,1730035841868,-1338.17,0.00027397,30]
[340893905,1730035841879,-500.0,0.00027397,30]
[340893906,1730035841889,-500.0,0.00027397,30]
[340893907,1730035841900,-500.0,0.00027397,30]
[340893908,1730035841910,-246.09,0.00027397,7]
[340893909,1730035841919,-500.0,0.00027397,7]
[340893910,1730035841929,-774.47,0.00027397,30]
[340893911,1730035841939,-500.0,0.00027397,30]
[340893912,1730035841950,-500.0,0.00027397,30]
[340893913,1730035841960,-807.09,0.00027397,30]
[340893914,1730035841969,-586.34610552,0.00027397,30]
[340893915,1730035841979,-500.0,0.00027397,30]
[340893916,1730035841989,-500.0,0.00027397,30]
[340893917,1730035841998,-500.0,0.00027397,30]
[340893918,1730035842007,-500.0,0.00027397,30]
[340893919,1730035842017,-500.0,0.00027397,30]
[340893920,1730035842027,-636.58,0.00027397,30]
[340893921,1730035842036,-500.0,0.00027397,30]
[340893922,1730035842048,-158.046537,0.00027397,7]
[340893923,1730035842058,-500.0,0.00027397,30]
[340893924,1730035842069,-151.0,0.00027397,7]
[340893925,1730035842079,-500.0,0.00027397,30]
[340893926,1730035842089,-151.0,0.00027397,7]
[340893927,1730035842100,-500.0,0.00027397,30]
[340893928,1730035842110,-1204.79,0.00027397,30]
[340893929,1730035842120,-345.78544429,0.00027397,30]
[340893930,1730035842129,-500.0,0.00027397,30]
[340893931,1730035842140,-500.0,0.00027397,30]
[340893932,1730035842150,-500.0,0.00027397,30]
[340893933,1730035842160,-151.0,0.00027397,7]
[340893934,1730035842170,-151.0,0.00027397,7]
[340893935,1730035842179,-500.0,0.00027397,30]
[340893936,1730035842189,-500.0,0.00027397,30]
[340893937,1730035842202,-354.92376797,0.00027397,30]
[340893938,1730035842212,-500.0,0.00027397,30]
[340893939,1730035842221,-500.0,0.00027397,30]
[340893940,1730035842231,-500.0,0.00027397,30]
[340893941,1730035842240,-500.0,0.00027397,30]
[340893942,1730035842250,-500.0,0.00027397,30]
[340893943,1730035842260,-151.0,0.00027397,7]
[340893944,1730035842270,-151.0,0.00027397,7]
[340893945,1730035842279,-151.0,0.00027397,7]
[340893946,1730035842289,-151.0,0.00027397,7]
[340893947,1730035842298,-151.0,0.00027397,7]
[340893948,1730035842308,-151.0,0.00027397,7]
[340893949,1730035842317,-151.0,0.00027397,7]
[340893950,1730035842327,-151.0,0.00027397,7]
[340893951,1730035842337,-151.0,0.00027397,7]
[340893952,1730035842346,-151.0,0.00027397,7]
[340893953,1730035842355,-151.0,0.00027397,7]
[340893954,1730035842365,-151.0,0.00027397,7]
[340893955,1730035842376,-151.0,0.00027397,7]
[340893956,1730035842387,-500.0,0.00027397,30]
[340893957,1730035842397,-151.0,0.00027397,7]
[340893958,1730035842407,-151.0,0.00027397,7]
[340893959,1730035842416,-151.0,0.00027397,7]
[340893960,1730035842426,-151.0,0.00027397,7]
[340893961,1730035842436,-151.0,0.00027397,7]
[340893962,1730035842448,-249.299456,0.00027397,7]
[340893963,1730035842458,-500.0,0.00027397,30]
[340893964,1730035842469,-500.0,0.00027397,30]
[340893965,1730035842478,-500.0,0.00027397,30]
[340893966,1730035842488,-704.86,0.00027397,30]
[340893967,1730035842498,-500.0,0.00027397,30]
[340893968,1730035842508,-500.0,0.00027397,30]
[340893969,1730035842517,-151.0,0.00027397,7]
[340893970,1730035842527,-500.0,0.00027397,30]
[340893971,1730035842537,-151.0,0.00027397,7]
[340893972,1730035842548,-151.0,0.00027397,7]
[340893973,1730035842558,-151.0,0.00027397,7]
[340893974,1730035842567,-151.0,0.00027397,7]
[340893975,1730035842577,-151.0,0.00027397,7]
[340893976,1730035842587,-151.0,0.00027397,7]
[340893977,1730035842598,-151.0,0.00027397,7]
[340893978,1730035842610,-151.0,0.00027397,7]
[340893979,1730035842619,-278.365468,0.00027397,7]
[340893980,1730035842630,-500.0,0.00027397,30]
[340893981,1730035842640,-151.0,0.00027397,7]
[340893982,1730035842652,-151.0,0.00027397,7]
[340893983,1730035842662,-151.0,0.00027397,7]
[340893984,1730035842671,-151.0,0.00027397,7]
[340893985,1730035842681,-151.0,0.00027397,7]
[340893986,1730035842694,-151.0,0.00027397,7]
[340893987,1730035842704,-1469.23,0.00027397,30]
[340893988,1730035842713,-500.0,0.00027397,30]
[340893989,1730035842724,-517.89125779,0.00027397,30]
[340893990,1730035842734,-1240.01,0.00027397,30]
[340893991,1730035842743,-500.0,0.00027397,30]
[340893992,1730035842754,-500.0,0.00027397,30]
[340893993,1730035842764,-500.0,0.00027397,30]
[340893994,1730035842773,-500.0,0.00027397,30]
[340893995,1730035842783,-518.71,0.00027397,30]
[340893996,1730035842793,-500.0,0.00027397,30]
[340893997,1730035842802,-500.0,0.00027397,30]
[340893998,1730035842812,-579.28,0.00027397,30]
[340893999,1730035842822,-500.0,0.00027397,30]
[340894000,1730035842831,-500.0,0.00027397,30]
[340894001,1730035842842,-500.0,0.00027397,30]
[340894002,1730035842853,-874.78,0.00027397,30]
[340894003,1730035842863,-500.0,0.00027397,30]
[340894004,1730035842873,-500.0,0.00027397,30]
[340894005,1730035842884,-983.89,0.00027397,30]
[340894006,1730035842895,-500.0,0.00027397,30]
[340894007,1730035842905,-440.08138505,0.00027397,30]
[340894008,1730035842917,-267.66556378,0.00027397,30]
[340894009,1730035842927,-500.0,0.00027397,30]
[340894010,1730035842936,-500.0,0.00027397,30]
[340894011,1730035842950,-500.0,0.00027397,30]
[340894012,1730035842960,-402.5509113,0.00027397,30]
[340894013,1730035842971,-1453.03,0.00027397,30]
[340894014,1730035842981,-670.93,0.00027397,30]
[340894015,1730035842990,-297.03363868,0.00027397,30]
[340894016,1730035843000,-1512.05,0.00027397,30]
[340894017,1730035843010,-500.0,0.00027397,30]
[340894018,1730035843019,-500.0,0.00027397,30]
[340894019,1730035843029,-500.0,0.00027397,30]
[340894020,1730035843040,-500.0,0.00027397,30]
[340894021,1730035843049,-1080.18,0.00027397,30]
[340894022,1730035843060,-500.0,0.00027397,30]
[340894023,1730035843069,-500.0,0.00027397,30]
[340894024,1730035843079,-500.0,0.00027397,30]
[340894025,1730035843089,-500.0,0.00027397,30]
[340894026,1730035843098,-500.0,0.00027397,30]
[340894027,1730035843108,-836.48,0.00027397,30]
[340894028,1730035843118,-750.35,0.00027397,30]
[340894029,1730035843128,-500.0,0.00027397,30]
[340894031,1730035843137,-1153.06,0.00027397,30]
[340894033,1730035843147,-500.0,0.00027397,10]
[340894035,1730035843157,-500.0,0.00027397,30]
[340894037,1730035843167,-523.28,0.00027397,30]
[340894039,1730035843176,-538.62478736,0.00027397,30]
[340894041,1730035843186,-502.48861596,0.00027397,30]
[340894042,1730035843198,-507.1079574,0.00027397,30]
[340894043,1730035843207,-217.00791,0.00027397,7]
[340894044,1730035843217,-855.88,0.00027397,30]
[340894045,1730035843226,-500.0,0.00027397,30]
[340894046,1730035843236,-1524.29,0.00027397,7]
[340894047,1730035843246,-500.0,0.00027397,30]
[340894048,1730035843256,-500.0,0.00027397,30]
[340894049,1730035843265,-431.98064537,0.00027397,30]
[340894050,1730035843275,-500.0,0.00027397,30]
[340894051,1730035843285,-500.0,0.00027397,30]
[340894052,1730035843294,-500.0,0.00027397,30]
[340894053,1730035843303,-880.39,0.00027397,30]
[340894054,1730035843313,-500.0,0.00027397,30]
[340894055,1730035843323,-581.06708485,0.00027397,30]
[340894056,1730035843332,-500.0,0.00027397,30]
[340894057,1730035843342,-500.0,0.00027397,30]
[340894058,1730035843352,-559.20774295,0.00027397,30]
[340894060,1730035843361,-500.0,0.00027397,2]
[340894061,1730035843371,-500.0,0.00027397,30]
[340894062,1730035843381,-500.0,0.00027397,30]
[340894063,1730035843391,-741.64,0.00027397,30]
[340894064,1730035843400,-500.0,0.00027397,30]
[340894065,1730035843409,-592.57,0.00027397,30]
[340894066,1730035843419,-963.22,0.00027397,30]
[340894067,1730035843428,-672.15,0.00027397,30]
[340894068,1730035843437,-391.4469924,0.00027397,30]
[340894069,1730035843454,-500.0,0.00027397,30]
[340894070,1730035843463,-576.99968532,0.00027397,30]
[340894071,1730035843472,-500.0,0.00027397,10]
[340894072,1730035843482,-819.88,0.00027397,30]
[340894073,1730035843492,-1623.84,0.00027397,30]
[340894074,1730035843502,-500.0,0.00027397,30]
[340894075,1730035843511,-500.0,0.00027397,30]
[340894076,1730035843521,-151.0,0.00027397,7]
[340894077,1730035843531,-500.0,0.00027397,30]
[340894078,1730035843540,-500.0,0.00027397,30]
[340894079,1730035843550,-848.88,0.00027397,30]
[340894080,1730035843560,-1337.76,0.00027397,30]
[340894081,1730035843570,-500.0,0.00027397,30]
[340894082,1730035843580,-409.64655627,0.00027397,30]
[340894083,1730035843589,-500.0,0.00027397,30]
[340894084,1730035843598,-500.0,0.00027397,30]
[340894085,1730035843608,-500.0,0.00027397,30]
[340894086,1730035843618,-1976.7,0.00027397,30]
[340894087,1730035843628,-3237.52,0.00027397,30]
[340894088,1730035843637,-504.27,0.00027397,30]
[340894089,1730035843651,-500.0,0.00027397,30]
[340894090,1730035843661,-151.0,0.00027397,7]
[340894091,1730035843670,-151.0,0.00027397,7]
[340894092,1730035843679,-500.0,0.00027397,30]
[340894093,1730035843690,-151.0,0.00027397,7]
[340894094,1730035843701,-151.0,0.00027397,7]
[340894095,1730035843710,-417.35362401,0.00027397,30]
[340894096,1730035843720,-211.316615,0.00027397,7]
[340894097,1730035843730,-151.0,0.00027397,7]
[340894098,1730035843740,-151.0,0.00027397,7]
[340894099,1730035843750,-151.0,0.00027397,7]
[340894100,1730035843759,-2787.09,0.00027397,30]
[340894101,1730035843769,-151.0,0.00027397,7]
[340894102,1730035843779,-294.366068,0.00027397,7]
[340894103,1730035843789,-796.99,0.00027397,30]
[340894104,1730035843798,-500.0,0.00027397,30]
[340894105,1730035843807,-1221.62,0.00027397,30]
[340894106,1730035843817,-536.35868563,0.00027397,30]
[340894107,1730035843827,-151.0,0.00027397,7]
[340894108,1730035843835,-151.0,0.00027397,7]
[340894109,1730035843845,-151.0,0.00027397,7]
[340894110,1730035843855,-1416.24,0.00027397,30]
[340894111,1730035843865,-151.0,0.00027397,7]
[340894113,1730035843874,-151.0,0.00027397,7]
[340894114,1730035843884,-687.14,0.00027397,30]
[340894115,1730035843894,-500.0,0.00027397,30]
[340894116,1730035843903,-500.0,0.00027397,30]
[340894117,1730035843913,-500.0,0.00027397,30]
[340894118,1730035843923,-1741.25,0.00027397,30]
[340894119,1730035843933,-500.0,0.00027397,30]
[340894120,1730035843983,-500.0,0.00027397,30]
[340894121,1730035843992,-500.0,0.00027397,30]
[340894122,1730035844003,-500.0,0.00027397,30]
[340894123,1730035844012,-500.0,0.00027397,30]
[340894124,1730035844022,-500.0,0.00027397,30]
[340894125,1730035844031,-603.10183963,0.00027397,30]
[340894126,1730035844042,-500.0,0.00027397,30]
[340894127,1730035844051,-1727.07,0.00027397,30]
[340894128,1730035844061,-500.0,0.00027397,30]
[340894129,1730035844070,-500.0,0.00027397,30]
[340894130,1730035844079,-500.0,0.00027397,30]
[340894131,1730035844089,-1608.13,0.00027397,30]
[340894132,1730035844098,-628.65,0.00027397,30]
[340894133,1730035844107,-1168.46,0.00027397,30]
[340894134,1730035844117,-815.79,0.00027397,30]
[340894135,1730035844127,-718.0,0.00027397,30]
[340894136,1730035844136,-500.0,0.00027397,30]
[340894137,1730035844146,-545.60972119,0.00027397,30]
[340894138,1730035844156,-161.58267138,0.00027397,30]
[340894139,1730035844166,-1056.9,0.00027397,30]
[340894140,1730035844175,-729.54,0.00027397,30]
[340894141,1730035844185,-614.290382,0.00027397,30]
[340894142,1730035844196,-843.58,0.00027397,30]
[340894143,1730035844205,-865.17,0.00027397,30]
[340894144,1730035844215,-546.03,0.00027397,30]
[340894145,1730035844224,-500.0,0.00027397,30]
[340894146,1730035844233,-870.2,0.00027397,30]
[340894147,1730035844243,-500.0,0.00027397,30]
[340894148,1730035844253,-500.0,0.00027397,30]
[340894149,1730035844262,-512.4021846,0.00027397,30]
[340894150,1730035844271,-500.0,0.00027397,30]
[340894151,1730035844281,-1366.47,0.00027397,30]
[340894152,1730035844291,-583.53,0.00027397,30]
[340894153,1730035844301,-500.0,0.00027397,30]
[340894154,1730035844311,-500.0,0.00027397,30]
[340894155,1730035844321,-701.96,0.00027397,30]
[340894156,1730035844331,-1122.36,0.00027397,30]
[340894157,1730035844341,-500.0,0.00027397,30]
[340894158,1730035844351,-500.0,0.00027397,30]
[340894159,1730035844361,-500.0,0.00027397,30]
[340894160,1730035844371,-500.0,0.00027397,30]
[340894161,1730035844380,-1043.64,0.00027397,30]
[340894162,1730035844390,-539.91,0.00027397,30]
[340894163,1730035844400,-676.92,0.00027397,30]
[340894164,1730035844410,-582.32619829,0.00027397,30]
[340894165,1730035844419,-500.0,0.00027397,30]
[340894166,1730035844428,-792.44,0.00027397,30]
[340894167,1730035844438,-1140.2,0.00027397,30]
[340894168,1730035844450,-868.09,0.00027397,30]
[340894169,1730035844459,-151.0,0.00027397,7]
[340894170,1730035844469,-151.0,0.00027397,7]
[340894171,1730035844479,-151.0,0.00027397,7]
[340894172,1730035844489,-288.045736,0.00027397,7]
[340894173,1730035844499,-500.0,0.00027397,30]
[340894174,1730035844509,-500.0,0.00027397,30]
[340894175,1730035844519,-500.0,0.00027397,30]
[340894176,1730035844530,-1994.84,0.00027397,30]
[340894177,1730035844543,-500.0,0.00027397,30]
[340894178,1730035844552,-898.33,0.00027397,30]
[340894179,1730035844561,-990.95,0.00027397,30]
[340894180,1730035844571,-500.0,0.00027397,30]
[340894181,1730035844579,-500.0,0.00027397,30]
[340894182,1730035844589,-500.0,0.00027397,30]
[340894183,1730035844598,-1824.46,0.00027397,30]
[340894184,1730035844609,-500.0,0.00027397,30]
[340894185,1730035844619,-500.0,0.00027397,30]
[340894186,1730035844629,-500.0,0.00027397,30]
[340894187,1730035844639,-500.0,0.00027397,30]
[340894188,1730035844652,-500.0,0.00027397,30]
[340894189,1730035844662,-1030.72,0.00027397,30]
[340894190,1730035844673,-151.0,0.00027397,7]
[340894191,1730035844684,-151.0,0.00027397,7]
[340894192,1730035844698,-500.0,0.00027397,30]
[340894193,1730035844710,-151.0,0.00027397,7]
[340894194,1730035844720,-151.0,0.00027397,7]
[340894195,1730035844731,-279.088266,0.00027397,7]
[340894196,1730035844741,-1065.21,0.00027397,30]
[340894197,1730035844751,-151.0,0.00027397,7]
[340894198,1730035844761,-151.0,0.00027397,7]
[340894199,1730035844770,-1952.6,0.00027397,30]
[340894200,1730035844779,-1164.19,0.00027397,30]
[340894201,1730035844789,-500.0,0.00027397,30]
[340894202,1730035844799,-500.0,0.00027397,30]
[340894203,1730035844808,-500.0,0.00027397,30]